[Event "December 19 Late 2023"]
[Site "https://www.chess.com"]
[Date "2023.12.19"]
[Round "7"]
[White "Chaika, Vitalii"]
[Black "Carrasco Miranda, Andres"]
[Result "1-0"]
[Board "97"]
[TimeControl "180+1"]
[WhiteFideId "14111802"]
[BlackFideId "3405990"]
[WhiteElo "2010"]
[BlackElo "2183"]
[WhiteTeam "UKR"]
[BlackTeam "CHI"]
[WhiteClock "0:01:42"]
[BlackClock "0:00:31"]

1. d4 {[%clk 0:02:59]}  Nf6 {[%clk 0:02:52]} 2. Bf4 {[%clk 0:02:58]}  g6 {[%clk 0:02:52]} 3. e3 {[%clk 0:02:58]}  Bg7 {[%clk 0:02:52]} 4. h3 {[%clk 0:02:58]}  O-O {[%clk 0:02:48]} 5. Nf3 {[%clk 0:02:59]}  d6 {[%clk 0:02:47]} 6. Be2 {[%clk 0:02:59]}  b6 {[%clk 0:02:42]} 7. O-O {[%clk 0:02:58]}  Bb7 {[%clk 0:02:43]} 8. a4 {[%clk 0:02:57]}  a6 {[%clk 0:02:42]} 9. c3 {[%clk 0:02:57]}  Nbd7 {[%clk 0:02:41]} 10. Nbd2 {[%clk 0:02:56]}  Ne4 {[%clk 0:02:41]} 11. Nxe4 {[%clk 0:02:53]}  Bxe4 {[%clk 0:02:42]} 12. Qb3 {[%clk 0:02:51]}  Bb7 {[%clk 0:02:22]} 13. Bh2 {[%clk 0:02:47]}  e5 {[%clk 0:02:19]} 14. a5 {[%clk 0:02:46]}  b5 {[%clk 0:02:18]} 15. c4 {[%clk 0:02:46]}  c6 {[%clk 0:02:00]} 16. Rfd1 {[%clk 0:02:45]}  Qe7 {[%clk 0:01:57]} 17. Qa3 {[%clk 0:02:41]}  e4 {[%clk 0:01:52]} 18. Bxd6 {[%clk 0:02:39]}  exf3 {[%clk 0:01:49]} 19. Bxe7 {[%clk 0:02:38]}  fxe2 {[%clk 0:01:49]} 20. Re1 {[%clk 0:02:37]}  Rfe8 {[%clk 0:01:46]} 21. Rxe2 {[%clk 0:02:27]}  bxc4 {[%clk 0:01:45]} 22. Bd6 {[%clk 0:02:20]}  Nf6 {[%clk 0:01:40]} 23. Qb4 {[%clk 0:02:17]}  Bc8 {[%clk 0:01:28]} 24. Rc2 {[%clk 0:02:16]}  Be6 {[%clk 0:01:25]} 25. Qb6 {[%clk 0:02:03]}  Bd5 {[%clk 0:01:15]} 26. Rac1 {[%clk 0:01:57]}  Ne4 {[%clk 0:01:10]} 27. Bh2 {[%clk 0:01:51]}  f5 {[%clk 0:01:00]} 28. Rxc4 {[%clk 0:01:49]}  Bxc4 {[%clk 0:01:01]} 29. Rxc4 {[%clk 0:01:48]}  Rad8 {[%clk 0:00:46]} 30. Rxc6 {[%clk 0:01:46]}  Nf6 {[%clk 0:00:31]} 31. Rxf6 {[%clk 0:01:42]} 1-0

[Event "December 19 Late 2023"]
[Site "https://www.chess.com"]
[Date "2023.12.19"]
[Round "7"]
[White "Serban, Cristian-Stefan"]
[Black "Skibbe, Willi"]
[Result "1/2-1/2"]
[Board "100"]
[TimeControl "180+1"]
[WhiteFideId "1241443"]
[BlackFideId "4682190"]
[WhiteElo "2040"]
[BlackElo "2375"]
[WhiteTeam "ROU"]
[BlackTeam "GER"]
[WhiteClock "0:00:04"]
[BlackClock "0:00:51"]

1. Nf3 {[%clk 0:03:00]}  d5 {[%clk 0:02:56]} 2. b3 {[%clk 0:03:01]}  Nf6 {[%clk 0:02:54]} 3. Bb2 {[%clk 0:03:02]}  Bf5 {[%clk 0:02:54]} 4. e3 {[%clk 0:03:02]}  h6 {[%clk 0:02:54]} 5. c4 {[%clk 0:03:03]}  e6 {[%clk 0:02:53]} 6. Nc3 {[%clk 0:03:03]}  c6 {[%clk 0:02:53]} 7. d4 {[%clk 0:03:03]}  Nbd7 {[%clk 0:02:52]} 8. Bd3 {[%clk 0:03:04]}  Bxd3 {[%clk 0:02:52]} 9. Qxd3 {[%clk 0:03:04]}  Bd6 {[%clk 0:02:52]} 10. O-O {[%clk 0:03:04]}  O-O {[%clk 0:02:52]} 11. e4 {[%clk 0:03:04]}  dxe4 {[%clk 0:02:52]} 12. Nxe4 {[%clk 0:03:05]}  Nxe4 {[%clk 0:02:53]} 13. Qxe4 {[%clk 0:03:06]}  Nf6 {[%clk 0:02:53]} 14. Qe2 {[%clk 0:03:04]}  Qc7 {[%clk 0:02:52]} 15. Rfd1 {[%clk 0:03:04]}  Rad8 {[%clk 0:02:51]} 16. Rac1 {[%clk 0:03:02]}  c5 {[%clk 0:02:49]} 17. h3 {[%clk 0:03:01]}  cxd4 {[%clk 0:02:48]} 18. Bxd4 {[%clk 0:02:47]}  Be7 {[%clk 0:02:47]} 19. Qe3 {[%clk 0:02:39]}  b6 {[%clk 0:02:45]} 20. Ne5 {[%clk 0:02:27]}  Bc5 {[%clk 0:02:37]} 21. Bxc5 {[%clk 0:02:26]}  bxc5 {[%clk 0:02:34]} 22. Nd3 {[%clk 0:02:19]}  Rc8 {[%clk 0:02:29]} 23. Rd2 {[%clk 0:02:18]}  Rfd8 {[%clk 0:02:28]} 24. Rcd1 {[%clk 0:02:18]}  g5 {[%clk 0:02:12]} 25. h4 {[%clk 0:01:50]}  Ng4 {[%clk 0:02:02]} 26. Qh3 {[%clk 0:01:50]}  f5 {[%clk 0:01:54]} 27. hxg5 {[%clk 0:01:46]}  hxg5 {[%clk 0:01:53]} 28. Qh5 {[%clk 0:01:35]}  Qg7 {[%clk 0:01:41]} 29. g3 {[%clk 0:01:15]}  Qh6 {[%clk 0:01:33]} 30. Qxh6 {[%clk 0:01:10]}  Nxh6 {[%clk 0:01:34]} 31. Ne5 {[%clk 0:01:08]}  Rxd2 {[%clk 0:01:27]} 32. Rxd2 {[%clk 0:01:09]}  Rc7 {[%clk 0:01:26]} 33. Rd8+ {[%clk 0:01:05]}  Kg7 {[%clk 0:01:23]} 34. Rd7+ {[%clk 0:01:06]}  Rxd7 {[%clk 0:01:21]} 35. Nxd7 {[%clk 0:01:06]}  f4 {[%clk 0:01:10]} 36. gxf4 {[%clk 0:01:01]}  gxf4 {[%clk 0:01:11]} 37. Nxc5 {[%clk 0:01:02]}  Kf6 {[%clk 0:01:10]} 38. f3 {[%clk 0:00:57]}  Ke5 {[%clk 0:01:09]} 39. Nd3+ {[%clk 0:00:57]}  Kf5 {[%clk 0:01:07]} 40. c5 {[%clk 0:00:57]}  e5 {[%clk 0:01:03]} 41. c6 {[%clk 0:00:56]}  Nf7 {[%clk 0:01:03]} 42. b4 {[%clk 0:00:40]}  Ke6 {[%clk 0:00:58]} 43. b5 {[%clk 0:00:27]}  Kd6 {[%clk 0:00:58]} 44. a4 {[%clk 0:00:27]}  Kc7 {[%clk 0:00:58]} 45. Kf2 {[%clk 0:00:25]}  Kb6 {[%clk 0:00:58]} 46. Ke2 {[%clk 0:00:23]}  a6 {[%clk 0:00:58]} 47. bxa6 {[%clk 0:00:19]}  Kxc6 {[%clk 0:00:57]} 48. Nb4+ {[%clk 0:00:19]}  Kb6 {[%clk 0:00:54]} 49. a5+ {[%clk 0:00:19]}  Ka7 {[%clk 0:00:52]} 50. Kd3 {[%clk 0:00:15]}  Nd6 {[%clk 0:00:53]} 51. Nc6+ {[%clk 0:00:06]}  Kxa6 {[%clk 0:00:53]} 52. Nxe5 {[%clk 0:00:07]}  Kxa5 {[%clk 0:00:52]} 53. Ng6 {[%clk 0:00:08]}  Nf7 {[%clk 0:00:50]} 54. Nxf4 {[%clk 0:00:03]}  Ne5+ {[%clk 0:00:50]} 55. Ke3 {[%clk 0:00:04]}  Nxf3 {[%clk 0:00:51]} 1/2-1/2

[Event "December 19 Late 2023"]
[Site "https://www.chess.com"]
[Date "2023.12.19"]
[Round "7"]
[White "Rose, Felix"]
[Black "Bru Rullo, Llatzer"]
[Result "1-0"]
[Board "101"]
[TimeControl "180+1"]
[WhiteFideId "5105722"]
[BlackFideId "22219668"]
[WhiteElo "2039"]
[BlackElo "2190"]
[WhiteTeam "MEX"]
[BlackTeam "ESP"]
[WhiteClock "0:02:26"]
[BlackClock "0:01:28"]

1. e4 {[%clk 0:02:58]}  c5 {[%clk 0:02:58]} 2. Nf3 {[%clk 0:02:59]}  e6 {[%clk 0:02:59]} 3. d4 {[%clk 0:02:59]}  cxd4 {[%clk 0:02:59]} 4. Nxd4 {[%clk 0:03:00]}  d6 {[%clk 0:03:00]} 5. Nc3 {[%clk 0:03:00]}  Nf6 {[%clk 0:03:00]} 6. Be3 {[%clk 0:02:58]}  a6 {[%clk 0:03:01]} 7. f3 {[%clk 0:02:58]}  b5 {[%clk 0:03:02]} 8. a4 {[%clk 0:02:56]}  b4 {[%clk 0:03:02]} 9. Na2 {[%clk 0:02:56]}  d5 {[%clk 0:03:02]} 10. e5 {[%clk 0:02:55]}  Nfd7 {[%clk 0:03:02]} 11. f4 {[%clk 0:02:55]}  Bb7 {[%clk 0:03:02]} 12. Qd2 {[%clk 0:02:55]}  Nc5 {[%clk 0:02:59]} 13. Bd3 {[%clk 0:02:52]}  a5 {[%clk 0:02:55]} 14. O-O {[%clk 0:02:49]}  Be7 {[%clk 0:02:53]} 15. Bb5+ {[%clk 0:02:45]}  Nbd7 {[%clk 0:02:52]} 16. b3 {[%clk 0:02:43]}  Rc8 {[%clk 0:02:49]} 17. f5 {[%clk 0:02:33]}  Ne4 {[%clk 0:02:07]} 18. Qe2 {[%clk 0:02:28]}  exf5 {[%clk 0:01:28]} 19. e6 {[%clk 0:02:26]} 1-0

[Event "December 19 Late 2023"]
[Site "https://www.chess.com"]
[Date "2023.12.19"]
[Round "7"]
[White "Argandona Riveiro, Inigo"]
[Black "Jesusesmifuerza"]
[Result "0-1"]
[Board "102"]
[TimeControl "180+1"]
[WhiteFideId "2212072"]
[WhiteElo "2391"]
[BlackElo "2182"]
[WhiteTeam "ESP"]
[WhiteClock "0:00:00"]
[BlackClock "0:00:13"]

1. Nf3 {[%clk 0:03:00]}  d5 {[%clk 0:02:47]} 2. c4 {[%clk 0:03:01]}  c6 {[%clk 0:02:45]} 3. d4 {[%clk 0:03:01]}  Nf6 {[%clk 0:02:45]} 4. e3 {[%clk 0:03:02]}  e6 {[%clk 0:02:45]} 5. b3 {[%clk 0:03:02]}  b6 {[%clk 0:02:45]} 6. Bb2 {[%clk 0:03:03]}  Bb7 {[%clk 0:02:44]} 7. Nbd2 {[%clk 0:03:03]}  Bd6 {[%clk 0:02:45]} 8. Bd3 {[%clk 0:03:03]}  Nbd7 {[%clk 0:02:45]} 9. O-O {[%clk 0:03:02]}  O-O {[%clk 0:02:45]} 10. Ne5 {[%clk 0:03:02]}  Qe7 {[%clk 0:02:41]} 11. a3 {[%clk 0:02:59]}  Rfe8 {[%clk 0:02:41]} 12. f4 {[%clk 0:02:59]}  Nf8 {[%clk 0:02:40]} 13. Qf3 {[%clk 0:02:58]}  N6d7 {[%clk 0:02:40]} 14. b4 {[%clk 0:02:48]}  f6 {[%clk 0:02:28]} 15. Nxd7 {[%clk 0:02:48]}  Qxd7 {[%clk 0:02:25]} 16. c5 {[%clk 0:02:48]}  bxc5 {[%clk 0:02:25]} 17. dxc5 {[%clk 0:02:46]}  Bc7 {[%clk 0:02:25]} 18. e4 {[%clk 0:02:46]}  e5 {[%clk 0:02:19]} 19. fxe5 {[%clk 0:02:38]}  fxe5 {[%clk 0:02:15]} 20. Qg3 {[%clk 0:02:13]}  Rad8 {[%clk 0:01:59]} 21. Rad1 {[%clk 0:02:12]}  Ng6 {[%clk 0:01:48]} 22. Nc4 {[%clk 0:02:09]}  Ba6 {[%clk 0:01:32]} 23. exd5 {[%clk 0:01:29]}  cxd5 {[%clk 0:01:29]} 24. Bxg6 {[%clk 0:00:46]}  hxg6 {[%clk 0:01:12]} 25. Nxe5 {[%clk 0:00:45]}  Bxe5 {[%clk 0:01:10]} 26. Bxe5 {[%clk 0:00:46]}  Bxf1 {[%clk 0:01:09]} 27. Rxf1 {[%clk 0:00:47]}  Rf8 {[%clk 0:01:08]} 28. Rd1 {[%clk 0:00:44]}  Qe6 {[%clk 0:01:02]} 29. Bd6 {[%clk 0:00:38]}  Rf5 {[%clk 0:00:59]} 30. Qd3 {[%clk 0:00:32]}  Rd7 {[%clk 0:00:50]} 31. h3 {[%clk 0:00:32]}  Rdf7 {[%clk 0:00:42]} 32. a4 {[%clk 0:00:30]}  Rf2 {[%clk 0:00:19]} 33. Qxd5 {[%clk 0:00:25]}  Qe2 {[%clk 0:00:16]} 34. b5 {[%clk 0:00:05]}  Kh7 {[%clk 0:00:16]} 35. Bg3 {[%clk 0:00:00]}  R7f5 {[%clk 0:00:13]} 0-1

[Event "December 19 Late 2023"]
[Site "https://www.chess.com"]
[Date "2023.12.19"]
[Round "7"]
[White "Mizzi, Jack"]
[Black "Navyblue1"]
[Result "1-0"]
[Board "104"]
[TimeControl "180+1"]
[WhiteFideId "5602521"]
[WhiteElo "2127"]
[BlackElo "2150"]
[WhiteTeam "MLT"]
[WhiteClock "0:00:43"]
[BlackClock "0:00:34"]

1. d4 {[%clk 0:03:00]}  Nf6 {[%clk 0:02:58]} 2. c4 {[%clk 0:02:58]}  g6 {[%clk 0:02:58]} 3. g3 {[%clk 0:02:57]}  Bg7 {[%clk 0:02:58]} 4. Bg2 {[%clk 0:02:53]}  O-O {[%clk 0:02:58]} 5. Nf3 {[%clk 0:02:51]}  d6 {[%clk 0:02:58]} 6. O-O {[%clk 0:02:51]}  c6 {[%clk 0:02:57]} 7. Nc3 {[%clk 0:02:52]}  Qb6 {[%clk 0:02:56]} 8. e4 {[%clk 0:02:48]}  Qa6 {[%clk 0:02:54]} 9. Nd2 {[%clk 0:02:45]}  e5 {[%clk 0:02:45]} 10. d5 {[%clk 0:02:37]}  cxd5 {[%clk 0:02:37]} 11. exd5 {[%clk 0:02:36]}  Nbd7 {[%clk 0:02:32]} 12. Nb5 {[%clk 0:02:32]}  Qb6 {[%clk 0:02:28]} 13. a4 {[%clk 0:02:16]}  a6 {[%clk 0:02:26]} 14. a5 {[%clk 0:02:09]}  Qc5 {[%clk 0:02:25]} 15. b4 {[%clk 0:01:53]}  Qxb4 {[%clk 0:02:20]} 16. Ra4 {[%clk 0:01:44]}  Qc5 {[%clk 0:02:04]} 17. Ba3 {[%clk 0:01:43]}  axb5 {[%clk 0:01:56]} 18. Bxc5 {[%clk 0:01:43]}  bxa4 {[%clk 0:01:51]} 19. Bxd6 {[%clk 0:01:42]}  Re8 {[%clk 0:01:51]} 20. Qxa4 {[%clk 0:01:40]}  b6 {[%clk 0:01:43]} 21. Qc6 {[%clk 0:01:36]}  Rxa5 {[%clk 0:01:39]} 22. Rb1 {[%clk 0:01:29]}  Ra7 {[%clk 0:01:37]} 23. Ne4 {[%clk 0:01:16]}  Bb7 {[%clk 0:01:34]} 24. Nxf6+ {[%clk 0:01:15]}  Bxf6 {[%clk 0:01:29]} 25. Qxd7 {[%clk 0:01:15]}  Rea8 {[%clk 0:01:25]} 26. Qb5 {[%clk 0:01:03]}  Ba6 {[%clk 0:01:25]} 27. Qb4 {[%clk 0:00:56]}  Rb7 {[%clk 0:01:20]} 28. h4 {[%clk 0:00:53]}  Rc8 {[%clk 0:01:17]} 29. Bf1 {[%clk 0:00:52]}  h5 {[%clk 0:01:08]} 30. Re1 {[%clk 0:00:52]}  Re8 {[%clk 0:00:50]} 31. Qa4 {[%clk 0:00:50]}  Rd8 {[%clk 0:00:44]} 32. Qxa6 {[%clk 0:00:49]}  Rbd7 {[%clk 0:00:41]} 33. Bb4 {[%clk 0:00:47]}  Rb8 {[%clk 0:00:36]} 34. Bc3 {[%clk 0:00:46]}  b5 {[%clk 0:00:36]} 35. Qxf6 {[%clk 0:00:44]}  b4 {[%clk 0:00:34]} 36. Bxe5 {[%clk 0:00:43]} 1-0

[Event "December 19 Late 2023"]
[Site "https://www.chess.com"]
[Date "2023.12.19"]
[Round "7"]
[White "Crispin Ferreras, Darvi Abraham"]
[Black "Huang, Youhe"]
[Result "1-0"]
[Board "107"]
[TimeControl "180+1"]
[WhiteFideId "6402771"]
[BlackFideId "2629445"]
[WhiteElo "2149"]
[BlackElo "2006"]
[WhiteTeam "DOM"]
[BlackTeam "CAN"]
[WhiteClock "0:01:19"]
[BlackClock "0:00:04"]

1. e4 {[%clk 0:02:49]}  e5 {[%clk 0:02:58]} 2. f4 {[%clk 0:02:48]}  d5 {[%clk 0:02:58]} 3. exd5 {[%clk 0:02:48]}  exf4 {[%clk 0:02:57]} 4. Nf3 {[%clk 0:02:46]}  Nf6 {[%clk 0:02:56]} 5. Nc3 {[%clk 0:02:45]}  Bb4 {[%clk 0:02:52]} 6. Bc4 {[%clk 0:02:44]}  O-O {[%clk 0:02:49]} 7. O-O {[%clk 0:02:44]}  Qd6 {[%clk 0:02:44]} 8. d4 {[%clk 0:02:42]}  Bxc3 {[%clk 0:02:28]} 9. bxc3 {[%clk 0:02:40]}  Nbd7 {[%clk 0:02:16]} 10. Ng5 {[%clk 0:02:20]}  Nxd5 {[%clk 0:02:11]} 11. Bxd5 {[%clk 0:02:15]}  Qxd5 {[%clk 0:02:11]} 12. Bxf4 {[%clk 0:02:15]}  h6 {[%clk 0:01:54]} 13. Nf3 {[%clk 0:02:12]}  Qc4 {[%clk 0:01:42]} 14. Qd2 {[%clk 0:02:12]}  Nf6 {[%clk 0:01:41]} 15. Ne5 {[%clk 0:02:11]}  Qd5 {[%clk 0:01:20]} 16. Bxh6 {[%clk 0:02:06]}  Ne4 {[%clk 0:01:19]} 17. Qf4 {[%clk 0:02:06]}  gxh6 {[%clk 0:01:17]} 18. Qxh6 {[%clk 0:02:06]}  Qe6 {[%clk 0:01:00]} 19. Qh4 {[%clk 0:02:04]}  f5 {[%clk 0:00:45]} 20. Rae1 {[%clk 0:01:59]}  Qf6 {[%clk 0:00:42]} 21. Rxe4 {[%clk 0:01:53]}  Qxh4 {[%clk 0:00:29]} 22. Rxh4 {[%clk 0:01:52]}  Kg7 {[%clk 0:00:17]} 23. a3 {[%clk 0:01:51]}  a5 {[%clk 0:00:16]} 24. Kf2 {[%clk 0:01:49]}  Ra6 {[%clk 0:00:16]} 25. Ke3 {[%clk 0:01:46]}  Rb6 {[%clk 0:00:15]} 26. Kd2 {[%clk 0:01:46]}  a4 {[%clk 0:00:15]} 27. Rhf4 {[%clk 0:01:39]}  Rb2 {[%clk 0:00:15]} 28. g4 {[%clk 0:01:38]}  Ra2 {[%clk 0:00:14]} 29. gxf5 {[%clk 0:01:38]}  Kf6 {[%clk 0:00:09]} 30. h4 {[%clk 0:01:35]}  Rxa3 {[%clk 0:00:08]} 31. Ng4+ {[%clk 0:01:35]}  Kf7 {[%clk 0:00:08]} 32. Ne3 {[%clk 0:01:30]}  b5 {[%clk 0:00:07]} 33. Nd5 {[%clk 0:01:29]}  c6 {[%clk 0:00:07]} 34. Nb4 {[%clk 0:01:28]}  Bd7 {[%clk 0:00:06]} 35. h5 {[%clk 0:01:25]}  Rh8 {[%clk 0:00:06]} 36. Rh4 {[%clk 0:01:24]}  Rh6 {[%clk 0:00:06]} 37. Nd3 {[%clk 0:01:23]}  Kf6 {[%clk 0:00:06]} 38. Ne5 {[%clk 0:01:22]}  Be8 {[%clk 0:00:05]} 39. Ng4+ {[%clk 0:01:22]}  Kg5 {[%clk 0:00:06]} 40. Nxh6 {[%clk 0:01:22]}  Kxh4 {[%clk 0:00:07]} 41. f6 {[%clk 0:01:22]}  Bxh5 {[%clk 0:00:05]} 42. f7 {[%clk 0:01:21]}  Bxf7 {[%clk 0:00:05]} 43. Nxf7 {[%clk 0:01:21]}  Ra2 {[%clk 0:00:05]} 44. Ne5 {[%clk 0:01:21]}  c5 {[%clk 0:00:02]} 45. dxc5 {[%clk 0:01:21]}  b4 {[%clk 0:00:03]} 46. cxb4 {[%clk 0:01:21]}  a3 {[%clk 0:00:04]} 47. Nc4 {[%clk 0:01:20]}  Kg3 {[%clk 0:00:03]} 48. c6 {[%clk 0:01:19]}  Kg2 {[%clk 0:00:03]} 49. Re1 {[%clk 0:01:19]}  Rb2 {[%clk 0:00:03]} 50. Nxb2 {[%clk 0:01:19]}  axb2 {[%clk 0:00:04]} 51. c7 {[%clk 0:01:19]} 1-0

[Event "December 19 Late 2023"]
[Site "https://www.chess.com"]
[Date "2023.12.19"]
[Round "7"]
[White "Novikova, Galina"]
[Black "Biernacki, Mark"]
[Result "1-0"]
[Board "108"]
[TimeControl "180+1"]
[WhiteFideId "4157095"]
[BlackFideId "2082322"]
[WhiteElo "1972"]
[BlackElo "1965"]
[WhiteTeam "RUS"]
[BlackTeam "USA"]
[WhiteClock "0:00:35"]
[BlackClock "0:00:00"]

1. e4 {[%clk 0:03:00]}  c6 {[%clk 0:02:59]} 2. d4 {[%clk 0:03:00]}  d5 {[%clk 0:03:00]} 3. e5 {[%clk 0:02:59]}  Bf5 {[%clk 0:03:01]} 4. Nc3 {[%clk 0:02:59]}  e6 {[%clk 0:03:00]} 5. g4 {[%clk 0:02:57]}  Bg6 {[%clk 0:03:00]} 6. Nge2 {[%clk 0:02:58]}  c5 {[%clk 0:02:58]} 7. h4 {[%clk 0:02:57]}  h5 {[%clk 0:02:57]} 8. Nf4 {[%clk 0:02:58]}  cxd4 {[%clk 0:02:50]} 9. Nxg6 {[%clk 0:02:55]}  fxg6 {[%clk 0:02:50]} 10. Qxd4 {[%clk 0:02:54]}  Nc6 {[%clk 0:02:45]} 11. Qf4 {[%clk 0:02:49]}  Bb4 {[%clk 0:02:18]} 12. Bd2 {[%clk 0:02:46]}  Nge7 {[%clk 0:02:06]} 13. O-O-O {[%clk 0:02:30]}  Rf8 {[%clk 0:01:57]} 14. Qg3 {[%clk 0:02:18]}  Qb6 {[%clk 0:01:33]} 15. f4 {[%clk 0:02:13]}  O-O-O {[%clk 0:01:29]} 16. gxh5 {[%clk 0:02:11]}  gxh5 {[%clk 0:01:29]} 17. Qxg7 {[%clk 0:02:09]}  Nf5 {[%clk 0:00:57]} 18. Qg1 {[%clk 0:02:08]}  Bc5 {[%clk 0:00:55]} 19. Qg6 {[%clk 0:02:03]}  Nce7 {[%clk 0:00:54]} 20. Qg2 {[%clk 0:01:44]}  Rg8 {[%clk 0:00:42]} 21. Qf3 {[%clk 0:01:35]}  Rg3 {[%clk 0:00:35]} 22. Qxh5 {[%clk 0:01:33]}  Bd4 {[%clk 0:00:15]} 23. Bd3 {[%clk 0:01:28]}  Rxd3 {[%clk 0:00:11]} 24. cxd3 {[%clk 0:01:25]}  Ng3 {[%clk 0:00:12]} 25. Qf7 {[%clk 0:01:22]}  Nxh1 {[%clk 0:00:11]} 26. Rxh1 {[%clk 0:01:21]}  Nf5 {[%clk 0:00:11]} 27. h5 {[%clk 0:01:17]}  Bxc3 {[%clk 0:00:08]} 28. Bxc3 {[%clk 0:01:13]}  Qe3+ {[%clk 0:00:07]} 29. Kb1 {[%clk 0:01:13]}  Qxd3+ {[%clk 0:00:07]} 30. Ka1 {[%clk 0:01:14]}  Kb8 {[%clk 0:00:03]} 31. Qxe6 {[%clk 0:01:10]}  Ne3 {[%clk 0:00:02]} 32. a3 {[%clk 0:00:51]}  Nc2+ {[%clk 0:00:03]} 33. Ka2 {[%clk 0:00:52]}  Qc4+ {[%clk 0:00:03]} 34. Kb1 {[%clk 0:00:52]}  Qd3 {[%clk 0:00:04]} 35. Qg6 {[%clk 0:00:35]}  Nxa3+ {[%clk 0:00:02]} 36. Ka2 {[%clk 0:00:36]}  Qc4+ {[%clk 0:00:00]} 37. Kxa3 {[%clk 0:00:35]} 1-0

[Event "December 19 Late 2023"]
[Site "https://www.chess.com"]
[Date "2023.12.19"]
[Round "7"]
[White "Merriman, John"]
[Black "Krzywda, Andrzej"]
[Result "0-1"]
[Board "110"]
[TimeControl "180+1"]
[WhiteFideId "402362"]
[BlackFideId "1114565"]
[WhiteElo "2207"]
[BlackElo "2130"]
[WhiteTeam "ENG"]
[BlackTeam "POL"]
[WhiteClock "0:00:00"]
[BlackClock "0:00:04"]

1. d4 {[%clk 0:03:00]}  d5 {[%clk 0:02:59]} 2. Bf4 {[%clk 0:03:00]}  Nf6 {[%clk 0:02:58]} 3. e3 {[%clk 0:03:00]}  c5 {[%clk 0:02:59]} 4. c3 {[%clk 0:03:00]}  Qb6 {[%clk 0:02:58]} 5. Qc2 {[%clk 0:02:56]}  Nh5 {[%clk 0:02:55]} 6. Bg5 {[%clk 0:02:48]}  h6 {[%clk 0:02:54]} 7. Bh4 {[%clk 0:02:48]}  g5 {[%clk 0:02:54]} 8. Bg3 {[%clk 0:02:48]}  Nxg3 {[%clk 0:02:54]} 9. hxg3 {[%clk 0:02:49]}  Bg7 {[%clk 0:02:45]} 10. Nf3 {[%clk 0:02:49]}  Nc6 {[%clk 0:02:43]} 11. Bd3 {[%clk 0:02:44]}  Bd7 {[%clk 0:02:36]} 12. Nbd2 {[%clk 0:02:37]}  O-O-O {[%clk 0:02:32]} 13. dxc5 {[%clk 0:02:28]}  Qxc5 {[%clk 0:02:32]} 14. Nb3 {[%clk 0:02:28]}  Qb6 {[%clk 0:02:30]} 15. Nbd4 {[%clk 0:02:26]}  e6 {[%clk 0:02:25]} 16. O-O-O {[%clk 0:02:02]}  Kb8 {[%clk 0:02:24]} 17. Kb1 {[%clk 0:02:02]}  Rc8 {[%clk 0:02:24]} 18. g4 {[%clk 0:01:56]}  Nb4 {[%clk 0:02:18]} 19. Qd2 {[%clk 0:01:46]}  Nxd3 {[%clk 0:02:17]} 20. Qxd3 {[%clk 0:01:47]}  e5 {[%clk 0:01:48]} 21. Nb3 {[%clk 0:01:18]}  Be6 {[%clk 0:01:27]} 22. Qd2 {[%clk 0:01:02]}  Rhd8 {[%clk 0:01:26]} 23. Rhe1 {[%clk 0:00:39]}  Rd7 {[%clk 0:01:20]} 24. Ka1 {[%clk 0:00:38]}  Rc4 {[%clk 0:01:18]} 25. Qc2 {[%clk 0:00:33]}  Ra4 {[%clk 0:01:00]} 26. Nc5 {[%clk 0:00:29]}  Rxa2+ {[%clk 0:00:54]} 27. Kxa2 {[%clk 0:00:30]}  Qxc5 {[%clk 0:00:55]} 28. Kb1 {[%clk 0:00:29]}  Bxg4 {[%clk 0:00:52]} 29. e4 {[%clk 0:00:24]}  dxe4 {[%clk 0:00:31]} 30. Qxe4 {[%clk 0:00:25]}  f5 {[%clk 0:00:19]} 31. Qa4 {[%clk 0:00:16]}  Rxd1+ {[%clk 0:00:16]} 32. Rxd1 {[%clk 0:00:17]}  a6 {[%clk 0:00:15]} 33. Rd8+ {[%clk 0:00:14]}  Ka7 {[%clk 0:00:15]} 34. Rd7 {[%clk 0:00:15]}  Bxf3 {[%clk 0:00:14]} 35. gxf3 {[%clk 0:00:12]}  Bf6 {[%clk 0:00:13]} 36. Qb3 {[%clk 0:00:12]}  Qc6 {[%clk 0:00:12]} 37. Qf7 {[%clk 0:00:11]}  e4 {[%clk 0:00:10]} 38. fxe4 {[%clk 0:00:11]}  Qxe4+ {[%clk 0:00:11]} 39. Ka1 {[%clk 0:00:09]}  Qc6 {[%clk 0:00:10]} 40. Rc7 {[%clk 0:00:08]}  Qb6 {[%clk 0:00:09]} 41. Kb1 {[%clk 0:00:06]}  f4 {[%clk 0:00:09]} 42. Rd7 {[%clk 0:00:03]}  h5 {[%clk 0:00:09]} 43. Qd5 {[%clk 0:00:03]}  h4 {[%clk 0:00:06]} 44. f3 {[%clk 0:00:03]}  h3 {[%clk 0:00:06]} 45. Rh7 {[%clk 0:00:03]}  h2 {[%clk 0:00:05]} 46. Rxh2 {[%clk 0:00:03]}  Qg1+ {[%clk 0:00:04]} 47. Ka2 {[%clk 0:00:02]}  Qxh2 {[%clk 0:00:05]} 48. Qe6 {[%clk 0:00:02]}  Qh8 {[%clk 0:00:03]} 49. Qd6 {[%clk 0:00:00]}  Qg8+ {[%clk 0:00:04]} 0-1

[Event "December 19 Late 2023"]
[Site "https://www.chess.com"]
[Date "2023.12.19"]
[Round "7"]
[White "Antonio, Jorge Carlos"]
[Black "Seletsky, Grigory"]
[Result "1/2-1/2"]
[Board "111"]
[TimeControl "180+1"]
[WhiteFideId "113190"]
[BlackFideId "14112191"]
[WhiteElo "2247"]
[BlackElo "2482"]
[WhiteTeam "ARG"]
[BlackTeam "UKR"]
[WhiteClock "0:01:10"]
[BlackClock "0:00:36"]

1. d4 {[%clk 0:03:00]}  e6 {[%clk 0:02:59]} 2. Nf3 {[%clk 0:03:00]}  Nf6 {[%clk 0:02:58]} 3. Bf4 {[%clk 0:02:58]}  Bd6 {[%clk 0:02:57]} 4. Bxd6 {[%clk 0:02:55]}  cxd6 {[%clk 0:02:57]} 5. e3 {[%clk 0:02:55]}  d5 {[%clk 0:02:57]} 6. c4 {[%clk 0:02:53]}  dxc4 {[%clk 0:02:52]} 7. Bxc4 {[%clk 0:02:52]}  O-O {[%clk 0:02:53]} 8. O-O {[%clk 0:02:51]}  b6 {[%clk 0:02:53]} 9. Be2 {[%clk 0:02:50]}  Bb7 {[%clk 0:02:48]} 10. Nbd2 {[%clk 0:02:49]}  d6 {[%clk 0:02:49]} 11. Rc1 {[%clk 0:02:48]}  Nc6 {[%clk 0:02:43]} 12. a3 {[%clk 0:02:47]}  Rc8 {[%clk 0:02:40]} 13. b4 {[%clk 0:02:47]}  Qe7 {[%clk 0:02:39]} 14. Qb3 {[%clk 0:02:46]}  e5 {[%clk 0:02:35]} 15. dxe5 {[%clk 0:02:43]}  dxe5 {[%clk 0:02:34]} 16. Bb5 {[%clk 0:02:38]}  e4 {[%clk 0:02:31]} 17. Bxc6 {[%clk 0:02:32]}  Bxc6 {[%clk 0:02:32]} 18. Nd4 {[%clk 0:02:32]}  Bd5 {[%clk 0:02:32]} 19. Qb2 {[%clk 0:02:31]}  g6 {[%clk 0:02:25]} 20. Rxc8 {[%clk 0:02:30]}  Rxc8 {[%clk 0:02:24]} 21. h3 {[%clk 0:02:29]}  h5 {[%clk 0:02:23]} 22. Rc1 {[%clk 0:02:29]}  Qd8 {[%clk 0:02:14]} 23. Rxc8 {[%clk 0:02:27]}  Qxc8 {[%clk 0:02:14]} 24. Qc2 {[%clk 0:02:26]}  Qd7 {[%clk 0:02:06]} 25. b5 {[%clk 0:02:16]}  Kg7 {[%clk 0:02:03]} 26. a4 {[%clk 0:02:15]}  h4 {[%clk 0:01:58]} 27. Nc6 {[%clk 0:02:12]}  a5 {[%clk 0:01:40]} 28. Qc3 {[%clk 0:02:10]}  Qd6 {[%clk 0:01:34]} 29. Nf1 {[%clk 0:01:52]}  Kg8 {[%clk 0:01:21]} 30. Nh2 {[%clk 0:01:50]}  Nd7 {[%clk 0:01:12]} 31. Ng4 {[%clk 0:01:42]}  f5 {[%clk 0:01:12]} 32. Nge5 {[%clk 0:01:38]}  Nxe5 {[%clk 0:01:10]} 33. Nxe5 {[%clk 0:01:35]}  Kh7 {[%clk 0:01:05]} 34. Nc6 {[%clk 0:01:27]}  Kg8 {[%clk 0:00:46]} 35. Qd4 {[%clk 0:01:20]}  Kf7 {[%clk 0:00:46]} 36. Qxb6 {[%clk 0:01:20]}  Bxc6 {[%clk 0:00:36]} 37. bxc6 {[%clk 0:01:17]}  Qd1+ {[%clk 0:00:36]} 38. Kh2 {[%clk 0:01:17]}  Qd6+ {[%clk 0:00:37]} 39. Kg1 {[%clk 0:01:11]}  Qd1+ {[%clk 0:00:35]} 40. Kh2 {[%clk 0:01:11]}  Qd6+ {[%clk 0:00:36]} 41. Kg1 {[%clk 0:01:10]} 1/2-1/2